[Event "FIDE World Rapid Chess Championship 2021"]
[White "Maghsoodloo, Parham"]
[Black "Sarana, Alexey"]
[WhiteFideId "12539929"]
[BlackFideId "24133795"]
[WhiteElo "2512"]
[BlackElo "2680"]
[Result "0-1"]
[Round "13"]
[TimeControl "900+10"]
[Date "2021.12.28"]
[WhiteClock "0:00:26"]
[BlackClock "0:04:00"]

1. e4 {[%clk 0:15:00]}  c5 {[%clk 0:15:00]} 2. Nf3 {[%clk 0:15:00]}  d6 {[%clk 0:15:00]} 3. d4 {[%clk 0:15:00]}  cxd4 {[%clk 0:15:00]} 4. Nxd4 {[%clk 0:15:00]}  Nf6 {[%clk 0:15:00]} 5. Nc3 {[%clk 0:15:00]}  a6 {[%clk 0:15:00]} 6. Bg5 {[%clk 0:15:00]}  e6 {[%clk 0:15:00]} 7. f4 {[%clk 0:15:00]}  Qb6 {[%clk 0:15:55]} 8. Nb3 {[%clk 0:16:05]}  Be7 {[%clk 0:15:55]} 9. Qf3 {[%clk 0:16:05]}  Qc7 {[%clk 0:15:55]} 10. O-O-O {[%clk 0:16:05]}  Nbd7 {[%clk 0:15:55]} 11. g4 {[%clk 0:16:05]}  b5 {[%clk 0:15:55]} 12. Bxf6 {[%clk 0:16:05]}  Bxf6 {[%clk 0:15:55]} 13. Bxb5 {[%clk 0:14:56]}  axb5 {[%clk 0:15:43]} 14. Nxb5 {[%clk 0:14:56]}  Qc6 {[%clk 0:13:17]} 15. Nxd6+ {[%clk 0:14:56]}  Kf8 {[%clk 0:13:17]} 16. Qd3 {[%clk 0:12:56]}  Ba6 {[%clk 0:11:09]} 17. Qd2 {[%clk 0:11:14]}  Nc5 {[%clk 0:11:09]} 18. Nxc5 {[%clk 0:11:14]}  Qxc5 {[%clk 0:11:09]} 19. e5 {[%clk 0:11:14]}  Be7 {[%clk 0:11:09]} 20. Rhe1 {[%clk 0:11:14]}  h5 {[%clk 0:09:45]} 21. f5 {[%clk 0:10:58]}  Bc4 {[%clk 0:09:40]} 22. Qf4 {[%clk 0:10:59]}  Bxa2 {[%clk 0:09:22]} 23. b4 {[%clk 0:07:22]}  Qc7 {[%clk 0:08:59]} 24. Rd3 {[%clk 0:05:42]}  hxg4 {[%clk 0:08:04]} 25. Nxf7 {[%clk 0:02:27]}  Rh5 {[%clk 0:04:50]} 26. fxe6 {[%clk 0:02:02]}  Kg8 {[%clk 0:03:49]} 27. Rd7 {[%clk 0:02:02]}  Qc3 {[%clk 0:03:49]} 28. Re3 {[%clk 0:02:02]}  Qxb4 {[%clk 0:04:00]} 29. Nh6+ {[%clk 0:00:26]}  Rxh6 {[%clk 0:04:00]} 30. Qf7+ {[%clk 0:00:26]}  Kh8 {[%clk 0:04:00]} 31. Rxe7 {[%clk 0:00:26]}  Qb1+ {[%clk 0:04:00]} 32. Kd2 {[%clk 0:00:26]}  Rxh2+ {[%clk 0:04:00]} 33. Re2 {[%clk 0:00:26]}  Qb4+ {[%clk 0:04:00]} 34. Ke3 {[%clk 0:00:26]}  Ra3+ {[%clk 0:04:00]} 0-1


[Site "http://www.Chess.com"]

[Event "FIDE World Rapid Chess Championship 2021"]
[White "Van Foreest, Jorden"]
[Black "Alekseenko, Kirill"]
[WhiteFideId "1039784"]
[BlackFideId "4135539"]
[WhiteElo "2563"]
[BlackElo "2637"]
[Result "1-0"]
[Round "13"]
[TimeControl "900+10"]
[Date "2021.12.28"]
[WhiteClock "0:00:23"]
[BlackClock "0:01:22"]

1. e4 {[%clk 0:15:00]}  e5 {[%clk 0:15:00]} 2. Nf3 {[%clk 0:15:00]}  Nc6 {[%clk 0:15:00]} 3. Bb5 {[%clk 0:15:00]}  a6 {[%clk 0:15:00]} 4. Ba4 {[%clk 0:15:00]}  d6 {[%clk 0:16:06]} 5. O-O {[%clk 0:15:37]}  Bd7 {[%clk 0:16:06]} 6. c3 {[%clk 0:15:37]}  Nge7 {[%clk 0:16:06]} 7. d4 {[%clk 0:15:37]}  Ng6 {[%clk 0:16:06]} 8. Be3 {[%clk 0:15:37]}  Be7 {[%clk 0:16:06]} 9. Re1 {[%clk 0:15:37]}  O-O {[%clk 0:16:06]} 10. Nbd2 {[%clk 0:15:37]}  exd4 {[%clk 0:16:06]} 11. cxd4 {[%clk 0:15:37]}  Nb4 {[%clk 0:16:06]} 12. Bxd7 {[%clk 0:15:37]}  Qxd7 {[%clk 0:16:06]} 13. Nf1 {[%clk 0:15:37]}  d5 {[%clk 0:16:30]} 14. e5 {[%clk 0:14:33]}  Qb5 {[%clk 0:16:30]} 15. Ng3 {[%clk 0:14:33]}  a5 {[%clk 0:11:54]} 16. Nf5 {[%clk 0:13:59]}  Bd8 {[%clk 0:11:54]} 17. Qd2 {[%clk 0:13:59]}  Qd7 {[%clk 0:09:48]} 18. Ng3 {[%clk 0:13:12]}  Ra6 {[%clk 0:08:36]} 19. a3 {[%clk 0:11:30]}  Nc6 {[%clk 0:08:36]} 20. Qc2 {[%clk 0:11:30]}  a4 {[%clk 0:08:36]} 21. Nd2 {[%clk 0:11:30]}  f5 {[%clk 0:08:05]} 22. f4 {[%clk 0:10:41]}  Bh4 {[%clk 0:08:05]} 23. Rac1 {[%clk 0:10:41]}  Rb6 {[%clk 0:08:05]} 24. Nf3 {[%clk 0:10:42]}  Be7 {[%clk 0:05:50]} 25. Ne2 {[%clk 0:10:42]}  Ra6 {[%clk 0:05:36]} 26. Nc3 {[%clk 0:07:56]}  Nd8 {[%clk 0:05:36]} 27. g3 {[%clk 0:07:56]}  Ne6 {[%clk 0:05:36]} 28. h4 {[%clk 0:07:56]}  h5 {[%clk 0:04:46]} 29. Qd1 {[%clk 0:07:19]}  Nh8 {[%clk 0:04:46]} 30. Bf2 {[%clk 0:07:24]}  g6 {[%clk 0:04:03]} 31. Nd2 {[%clk 0:07:24]}  Nf7 {[%clk 0:04:03]} 32. Nf1 {[%clk 0:07:24]}  Nh6 {[%clk 0:04:03]} 33. Ne3 {[%clk 0:07:24]}  Ra5 {[%clk 0:04:03]} 34. Re2 {[%clk 0:07:24]}  Rfa8 {[%clk 0:04:03]} 35. Rd2 {[%clk 0:07:24]}  c6 {[%clk 0:04:03]} 36. Ne2 {[%clk 0:07:24]}  R5a6 {[%clk 0:03:46]} 37. Rd3 {[%clk 0:04:20]}  Rb6 {[%clk 0:03:46]} 38. Rc2 {[%clk 0:04:20]}  Rb5 {[%clk 0:03:46]} 39. Nc3 {[%clk 0:04:20]}  Rb3 {[%clk 0:03:46]} 40. Rcd2 {[%clk 0:04:20]}  b5 {[%clk 0:03:46]} 41. Na2 {[%clk 0:03:05]}  Rxd3 {[%clk 0:03:06]} 42. Rxd3 {[%clk 0:03:05]}  Bd8 {[%clk 0:03:06]} 43. Nc3 {[%clk 0:03:05]}  Ba5 {[%clk 0:03:06]} 44. Ne2 {[%clk 0:03:05]}  Qb7 {[%clk 0:03:06]} 45. Kg2 {[%clk 0:03:05]}  Kf7 {[%clk 0:03:06]} 46. Be1 {[%clk 0:03:05]}  b4 {[%clk 0:02:34]} 47. Qxa4 {[%clk 0:02:32]}  Qa6 {[%clk 0:02:34]} 48. Qd1 {[%clk 0:02:32]}  Rb8 {[%clk 0:02:34]} 49. Rb3 {[%clk 0:01:26]}  Rb7 {[%clk 0:01:32]} 50. axb4 {[%clk 0:01:26]}  Bd8 {[%clk 0:01:32]} 51. Ra3 {[%clk 0:01:26]}  Qb6 {[%clk 0:01:32]} 52. Qd3 {[%clk 0:01:26]}  Nc7 {[%clk 0:01:32]} 53. Rc3 {[%clk 0:01:26]}  Nb5 {[%clk 0:01:12]} 54. Rc1 {[%clk 0:00:33]}  Be7 {[%clk 0:01:12]} 55. Bd2 {[%clk 0:00:33]}  Ke6 {[%clk 0:01:12]} 56. Qc2 {[%clk 0:00:33]}  Rc7 {[%clk 0:01:12]} 57. Qa4 {[%clk 0:00:33]}  Ra7 {[%clk 0:01:12]} 58. Qb3 {[%clk 0:00:33]}  Qb7 {[%clk 0:01:12]} 59. Qd3 {[%clk 0:00:33]}  Qb6 {[%clk 0:01:12]} 60. Kh3 {[%clk 0:00:33]}  Ra2 {[%clk 0:01:12]} 61. Qc2 {[%clk 0:00:33]}  Ra6 {[%clk 0:01:12]} 62. Nxd5 {[%clk 0:00:33]}  cxd5 {[%clk 0:01:22]} 63. Qc8+ {[%clk 0:00:23]}  Kf7 {[%clk 0:01:22]} 64. Qh8 {[%clk 0:00:23]}  Bf8 {[%clk 0:01:22]} 65. Rc8 {[%clk 0:00:23]} 1-0


[Site "http://www.Chess.com"]

[Event "FIDE World Rapid Chess Championship 2021"]
[White "Sargsyan, Shant"]
[Black "Volokitin, Andrei"]
[WhiteFideId "13306766"]
[BlackFideId "14107090"]
[WhiteElo "2344"]
[BlackElo "2631"]
[Result "1/2-1/2"]
[Round "13"]
[TimeControl "900+10"]
[Date "2021.12.28"]
[WhiteClock "0:09:12"]
[BlackClock "0:06:25"]

1. d4 {[%clk 0:15:00]}  Nf6 {[%clk 0:15:00]} 2. c4 {[%clk 0:15:00]}  e6 {[%clk 0:16:12]} 3. Nf3 {[%clk 0:15:36]}  d5 {[%clk 0:16:12]} 4. Nc3 {[%clk 0:15:36]}  Bb4 {[%clk 0:16:12]} 5. cxd5 {[%clk 0:15:36]}  exd5 {[%clk 0:16:12]} 6. Bg5 {[%clk 0:15:36]}  h6 {[%clk 0:16:12]} 7. Bh4 {[%clk 0:15:36]}  O-O {[%clk 0:16:12]} 8. e3 {[%clk 0:15:36]}  Bf5 {[%clk 0:16:12]} 9. Be2 {[%clk 0:15:36]}  Nbd7 {[%clk 0:16:12]} 10. Qb3 {[%clk 0:15:36]}  c5 {[%clk 0:16:12]} 11. dxc5 {[%clk 0:15:36]}  a5 {[%clk 0:16:12]} 12. O-O {[%clk 0:13:55]}  Nxc5 {[%clk 0:13:46]} 13. Qd1 {[%clk 0:13:55]}  Bxc3 {[%clk 0:13:46]} 14. bxc3 {[%clk 0:13:55]}  Nce4 {[%clk 0:13:46]} 15. Rc1 {[%clk 0:13:55]}  Rc8 {[%clk 0:13:46]} 16. Nd4 {[%clk 0:13:55]}  Bd7 {[%clk 0:12:48]} 17. c4 {[%clk 0:13:27]}  g5 {[%clk 0:12:48]} 18. Bg3 {[%clk 0:13:27]}  dxc4 {[%clk 0:12:48]} 19. Bxc4 {[%clk 0:13:27]}  Qe7 {[%clk 0:12:48]} 20. Qd3 {[%clk 0:13:06]}  Rc5 {[%clk 0:10:47]} 21. Nb3 {[%clk 0:12:25]}  Rf5 {[%clk 0:06:09]} 22. Nd4 {[%clk 0:12:25]}  Rc5 {[%clk 0:06:17]} 23. Nb3 {[%clk 0:09:12]}  Rf5 {[%clk 0:06:25]} 24. Nd4 {[%clk 0:09:12]} 1/2-1/2


[Site "http://www.Chess.com"]

[Event "FIDE World Rapid Chess Championship 2021"]
[White "Artemiev, Vladislav"]
[Black "Vakhidov, Jakhongir"]
[WhiteFideId "24101605"]
[BlackFideId "14201801"]
[WhiteElo "2714"]
[BlackElo "2566"]
[Result "1-0"]
[Round "13"]
[TimeControl "900+10"]
[Date "2021.12.28"]
[WhiteClock "0:00:58"]
[BlackClock "0:00:49"]

1. Nf3 {[%clk 0:15:00]}  g6 {[%clk 0:15:00]} 2. d4 {[%clk 0:15:35]}  Nf6 {[%clk 0:15:45]} 3. g3 {[%clk 0:15:35]}  Bg7 {[%clk 0:15:45]} 4. Bg2 {[%clk 0:15:35]}  O-O {[%clk 0:15:45]} 5. O-O {[%clk 0:15:35]}  d6 {[%clk 0:15:45]} 6. Nc3 {[%clk 0:15:35]}  d5 {[%clk 0:15:45]} 7. Re1 {[%clk 0:15:35]}  Bf5 {[%clk 0:15:45]} 8. Nh4 {[%clk 0:15:35]}  Bg4 {[%clk 0:15:45]} 9. Bg5 {[%clk 0:15:35]}  Be6 {[%clk 0:15:56]} 10. e4 {[%clk 0:14:07]}  dxe4 {[%clk 0:15:56]} 11. Nxe4 {[%clk 0:14:07]}  Nxe4 {[%clk 0:15:56]} 12. Bxe4 {[%clk 0:12:40]}  c6 {[%clk 0:11:48]} 13. c3 {[%clk 0:12:40]}  Nd7 {[%clk 0:11:48]} 14. d5 {[%clk 0:10:40]}  cxd5 {[%clk 0:10:55]} 15. Bxd5 {[%clk 0:10:40]}  h6 {[%clk 0:10:59]} 16. Bxe6 {[%clk 0:08:53]}  hxg5 {[%clk 0:06:01]} 17. Nxg6 {[%clk 0:08:53]}  fxe6 {[%clk 0:06:01]} 18. Nxf8 {[%clk 0:08:53]}  Nxf8 {[%clk 0:06:01]} 19. Qxd8 {[%clk 0:05:40]}  Rxd8 {[%clk 0:06:18]} 20. Rad1 {[%clk 0:05:40]}  Rc8 {[%clk 0:06:18]} 21. Re4 {[%clk 0:05:40]}  Bf6 {[%clk 0:06:18]} 22. Ra4 {[%clk 0:03:50]}  a6 {[%clk 0:06:40]} 23. Rb4 {[%clk 0:03:50]}  Rb8 {[%clk 0:06:40]} 24. c4 {[%clk 0:03:50]}  e5 {[%clk 0:06:40]} 25. Rb6 {[%clk 0:01:51]}  Kf7 {[%clk 0:06:07]} 26. c5 {[%clk 0:01:51]}  Rc8 {[%clk 0:06:07]} 27. Rc1 {[%clk 0:01:51]}  Rc7 {[%clk 0:05:48]} 28. c6 {[%clk 0:00:56]}  bxc6 {[%clk 0:05:48]} 29. Rxa6 {[%clk 0:00:56]}  c5 {[%clk 0:05:48]} 30. b4 {[%clk 0:00:56]}  Ne6 {[%clk 0:02:13]} 31. bxc5 {[%clk 0:01:12]}  e4 {[%clk 0:02:13]} 32. c6 {[%clk 0:01:12]}  Nd4 {[%clk 0:02:13]} 33. Kg2 {[%clk 0:01:12]}  Ke6 {[%clk 0:02:13]} 34. Rb6 {[%clk 0:01:12]}  Kd5 {[%clk 0:01:15]} 35. Rb7 {[%clk 0:00:28]}  Rxc6 {[%clk 0:01:15]} 36. Rxc6 {[%clk 0:00:28]}  Kxc6 {[%clk 0:01:15]} 37. Rb8 {[%clk 0:00:28]}  Be5 {[%clk 0:01:15]} 38. Rc8+ {[%clk 0:00:28]}  Kb5 {[%clk 0:01:15]} 39. Rc1 {[%clk 0:00:28]}  Ne2 {[%clk 0:01:15]} 40. Rb1+ {[%clk 0:00:28]}  Ka4 {[%clk 0:01:15]} 41. Rb7 {[%clk 0:00:28]}  Bf6 {[%clk 0:01:15]} 42. Rc7 {[%clk 0:00:28]}  Nc3 {[%clk 0:01:00]} 43. h4 {[%clk 0:00:31]}  gxh4 {[%clk 0:01:00]} 44. gxh4 {[%clk 0:00:31]}  Kb5 {[%clk 0:01:00]} 45. Rc8 {[%clk 0:00:31]}  Nd5 {[%clk 0:01:00]} 46. Kg3 {[%clk 0:00:31]}  e3 {[%clk 0:01:00]} 47. fxe3 {[%clk 0:00:31]}  Nxe3 {[%clk 0:01:00]} 48. h5 {[%clk 0:00:31]}  Bg5 {[%clk 0:01:00]} 49. Kf3 {[%clk 0:00:31]}  e5 {[%clk 0:01:00]} 50. Rf8 {[%clk 0:00:00]}  Kc4 {[%clk 0:00:13]} 51. Ke4 {[%clk 0:00:00]}  Nd1 {[%clk 0:00:13]} 52. Rc8+ {[%clk 0:00:00]}  Kb4 {[%clk 0:00:13]} 53. Kxe5 {[%clk 0:00:00]}  Nc3 {[%clk 0:00:13]} 54. Rb8+ {[%clk 0:00:00]}  Ka4 {[%clk 0:00:13]} 55. Ra8+ {[%clk 0:00:00]}  Kb4 {[%clk 0:00:13]} 56. Kd4 {[%clk 0:00:00]}  Bf6+ {[%clk 0:00:13]} 57. Kd3 {[%clk 0:00:00]}  Na4 {[%clk 0:00:13]} 58. h6 {[%clk 0:00:00]}  Nc5+ {[%clk 0:00:13]} 59. Kc2 {[%clk 0:00:00]}  Ne6 {[%clk 0:00:25]} 60. h7 {[%clk 0:00:17]}  Nd4+ {[%clk 0:00:25]} 61. Kb1 {[%clk 0:00:17]}  Nb5 {[%clk 0:00:25]} 62. Rb8 {[%clk 0:00:17]}  Ka4 {[%clk 0:00:25]} 63. h8=Q {[%clk 0:00:17]}  Na3+ {[%clk 0:00:25]} 64. Kc1 {[%clk 0:00:17]}  Bxh8 {[%clk 0:00:25]} 65. Rxh8 {[%clk 0:00:17]}  Kb4 {[%clk 0:00:25]} 66. Rb8+ {[%clk 0:00:17]}  Ka4 {[%clk 0:00:25]} 67. Kb2 {[%clk 0:00:17]}  Nc4+ {[%clk 0:00:25]} 68. Kc3 {[%clk 0:00:17]}  Nd6 {[%clk 0:00:25]} 69. Ra8+ {[%clk 0:00:17]}  Kb5 {[%clk 0:00:25]} 70. a4+ {[%clk 0:00:17]}  Kb6 {[%clk 0:00:25]} 71. Kb4 {[%clk 0:00:17]}  Kb7 {[%clk 0:00:25]} 72. Rh8 {[%clk 0:00:17]}  Nc8 {[%clk 0:00:46]} 73. Kc5 {[%clk 0:00:58]}  Na7 {[%clk 0:00:46]} 74. Rh7+ {[%clk 0:00:58]}  Kb8 {[%clk 0:00:49]} 75. a5 {[%clk 0:00:58]}  Nc8 {[%clk 0:00:49]} 76. Rg7 {[%clk 0:00:58]}  Ka8 {[%clk 0:00:49]} 77. Kc6 {[%clk 0:00:58]}  Kb8 {[%clk 0:00:49]} 78. Rg8 {[%clk 0:00:58]} 1-0


[Site "http://www.Chess.com"]

[Event "FIDE World Rapid Chess Championship 2021"]
[White "Shirov, Alexei"]
[Black "Bluebaum, Matthias"]
[WhiteFideId "2209390"]
[BlackFideId "24651516"]
[WhiteElo "2702"]
[BlackElo "2575"]
[Result "0-1"]
[Round "13"]
[TimeControl "900+10"]
[Date "2021.12.28"]
[WhiteClock "0:00:35"]
[BlackClock "0:01:17"]

1. e4 {[%clk 0:15:00]}  c6 {[%clk 0:15:00]} 2. d4 {[%clk 0:15:00]}  d5 {[%clk 0:15:00]} 3. e5 {[%clk 0:15:00]}  Bf5 {[%clk 0:15:00]} 4. Nf3 {[%clk 0:15:00]}  e6 {[%clk 0:15:00]} 5. Be2 {[%clk 0:15:00]}  c5 {[%clk 0:16:12]} 6. Be3 {[%clk 0:15:49]}  Qb6 {[%clk 0:16:12]} 7. Nc3 {[%clk 0:15:49]}  Nc6 {[%clk 0:16:12]} 8. O-O {[%clk 0:15:49]}  Qxb2 {[%clk 0:16:12]} 9. Qe1 {[%clk 0:15:49]}  cxd4 {[%clk 0:16:12]} 10. Bxd4 {[%clk 0:15:49]}  Nxd4 {[%clk 0:16:12]} 11. Nxd4 {[%clk 0:15:49]}  Bb4 {[%clk 0:16:12]} 12. Rb1 {[%clk 0:15:49]}  Bxc3 {[%clk 0:16:12]} 13. Rxb2 {[%clk 0:15:49]}  Bxe1 {[%clk 0:16:12]} 14. Rxe1 {[%clk 0:15:49]}  b6 {[%clk 0:16:12]} 15. h4 {[%clk 0:14:23]}  h5 {[%clk 0:16:54]} 16. Nxf5 {[%clk 0:14:23]}  exf5 {[%clk 0:16:54]} 17. c4 {[%clk 0:14:23]}  Ne7 {[%clk 0:16:54]} 18. Rd2 {[%clk 0:13:57]}  O-O-O {[%clk 0:17:17]} 19. cxd5 {[%clk 0:13:57]}  Rxd5 {[%clk 0:17:23]} 20. Rxd5 {[%clk 0:06:57]}  Nxd5 {[%clk 0:16:17]} 21. Bc4 {[%clk 0:06:57]}  Rd8 {[%clk 0:16:17]} 22. Rc1 {[%clk 0:06:57]}  Kb7 {[%clk 0:15:30]} 23. Rd1 {[%clk 0:02:58]}  Kc6 {[%clk 0:15:30]} 24. a4 {[%clk 0:02:58]}  Kc5 {[%clk 0:15:30]} 25. Bb3 {[%clk 0:02:18]}  f4 {[%clk 0:14:35]} 26. Kf1 {[%clk 0:02:18]}  Rd7 {[%clk 0:14:01]} 27. Ke1 {[%clk 0:00:56]}  a5 {[%clk 0:14:01]} 28. Ba2 {[%clk 0:00:56]}  g6 {[%clk 0:14:01]} 29. Rd2 {[%clk 0:00:56]}  b5 {[%clk 0:11:36]} 30. axb5 {[%clk 0:00:31]}  Nb6 {[%clk 0:11:36]} 31. Re2 {[%clk 0:00:31]}  Kxb5 {[%clk 0:11:01]} 32. e6 {[%clk 0:00:30]}  fxe6 {[%clk 0:11:01]} 33. Rxe6 {[%clk 0:00:30]}  Na4 {[%clk 0:11:01]} 34. Rxg6 {[%clk 0:00:30]}  Nc3 {[%clk 0:11:01]} 35. Bb3 {[%clk 0:00:30]}  a4 {[%clk 0:11:01]} 36. Bxa4+ {[%clk 0:00:30]}  Kxa4 {[%clk 0:11:01]} 37. f3 {[%clk 0:00:30]}  Rd1+ {[%clk 0:05:03]} 38. Kf2 {[%clk 0:00:32]}  Rd2+ {[%clk 0:05:03]} 39. Ke1 {[%clk 0:00:32]}  Rd1+ {[%clk 0:05:03]} 40. Kf2 {[%clk 0:00:32]}  Kb3 {[%clk 0:05:03]} 41. Rg5 {[%clk 0:00:32]}  Rd2+ {[%clk 0:03:31]} 42. Ke1 {[%clk 0:00:33]}  Rd5 {[%clk 0:03:31]} 43. g4 {[%clk 0:00:33]}  Rxg5 {[%clk 0:03:31]} 44. hxg5 {[%clk 0:00:33]}  hxg4 {[%clk 0:01:17]} 45. fxg4 {[%clk 0:00:35]}  Nd5 {[%clk 0:01:17]} 46. Kf2 {[%clk 0:00:35]}  Ne7 {[%clk 0:01:17]} 0-1


[Site "http://www.Chess.com"]

[Event "FIDE World Rapid Chess Championship 2021"]
[White "Socko, Bartosz"]
[Black "Sargissian, Gabriel"]
[WhiteFideId "1107038"]
[BlackFideId "13300881"]
[WhiteElo "2562"]
[BlackElo "2693"]
[Result "0-1"]
[Round "13"]
[TimeControl "900+10"]
[Date "2021.12.28"]
[WhiteClock "0:00:01"]
[BlackClock "0:02:02"]

1. d4 {[%clk 0:15:00]}  Nf6 {[%clk 0:15:00]} 2. c4 {[%clk 0:15:00]}  e6 {[%clk 0:15:00]} 3. Nf3 {[%clk 0:15:00]}  d5 {[%clk 0:15:26]} 4. g3 {[%clk 0:16:00]}  Bb4+ {[%clk 0:15:26]} 5. Nbd2 {[%clk 0:16:00]}  O-O {[%clk 0:15:26]} 6. Bg2 {[%clk 0:16:00]}  b6 {[%clk 0:15:26]} 7. O-O {[%clk 0:16:00]}  Bb7 {[%clk 0:15:26]} 8. Ne5 {[%clk 0:16:00]}  Re8 {[%clk 0:15:26]} 9. Ndf3 {[%clk 0:16:00]}  Bf8 {[%clk 0:15:26]} 10. Ng5 {[%clk 0:16:00]}  Re7 {[%clk 0:15:26]} 11. Bh3 {[%clk 0:15:12]}  Qe8 {[%clk 0:14:44]} 12. b3 {[%clk 0:14:20]}  h6 {[%clk 0:12:43]} 13. Ngf3 {[%clk 0:14:20]}  c5 {[%clk 0:12:43]} 14. Bb2 {[%clk 0:12:27]}  Rc7 {[%clk 0:12:23]} 15. Rc1 {[%clk 0:12:27]}  Na6 {[%clk 0:12:23]} 16. Qd2 {[%clk 0:12:27]}  Rd8 {[%clk 0:11:58]} 17. Rfd1 {[%clk 0:10:46]}  dxc4 {[%clk 0:11:58]} 18. Rxc4 {[%clk 0:11:04]}  Nb4 {[%clk 0:09:00]} 19. a3 {[%clk 0:11:04]}  Nc6 {[%clk 0:07:34]} 20. Qe1 {[%clk 0:10:01]}  Na5 {[%clk 0:07:07]} 21. Ra4 {[%clk 0:04:58]}  Bxf3 {[%clk 0:07:09]} 22. exf3 {[%clk 0:04:58]}  Nxb3 {[%clk 0:07:09]} 23. Rc4 {[%clk 0:04:58]}  b5 {[%clk 0:07:09]} 24. Rc2 {[%clk 0:04:58]}  c4 {[%clk 0:06:13]} 25. Re2 {[%clk 0:04:15]}  Nd5 {[%clk 0:06:13]} 26. Nxf7 {[%clk 0:04:15]}  Rxf7 {[%clk 0:06:13]} 27. Bxe6 {[%clk 0:04:15]}  Qc6 {[%clk 0:06:13]} 28. Re5 {[%clk 0:04:15]}  Rd6 {[%clk 0:05:29]} 29. Qe4 {[%clk 0:03:33]}  Rxe6 {[%clk 0:05:29]} 30. Rxe6 {[%clk 0:03:33]}  Qb7 {[%clk 0:05:29]} 31. Re5 {[%clk 0:03:33]}  Nf6 {[%clk 0:04:04]} 32. Qe3 {[%clk 0:02:38]}  Bd6 {[%clk 0:04:04]} 33. Re6 {[%clk 0:02:38]}  Qd5 {[%clk 0:04:04]} 34. Re1 {[%clk 0:02:38]}  a5 {[%clk 0:02:48]} 35. Re5 {[%clk 0:01:45]}  Bxe5 {[%clk 0:02:48]} 36. dxe5 {[%clk 0:01:45]}  Ne8 {[%clk 0:02:48]} 37. f4 {[%clk 0:01:45]}  b4 {[%clk 0:02:48]} 38. axb4 {[%clk 0:01:45]}  axb4 {[%clk 0:02:48]} 39. e6 {[%clk 0:01:45]}  Re7 {[%clk 0:02:48]} 40. Qb6 {[%clk 0:01:45]}  Qd6 {[%clk 0:02:20]} 41. Qb5 {[%clk 0:01:27]}  Qc5 {[%clk 0:02:20]} 42. Qa4 {[%clk 0:01:27]}  Nd2 {[%clk 0:02:20]} 43. Qa8 {[%clk 0:01:27]}  c3 {[%clk 0:02:20]} 44. Bc1 {[%clk 0:01:27]}  Qd6 {[%clk 0:02:20]} 45. f5 {[%clk 0:01:27]}  Qd3 {[%clk 0:02:20]} 46. Kg2 {[%clk 0:00:01]}  Qxf5 {[%clk 0:02:02]} 47. Qc8 {[%clk 0:00:01]}  Kh7 {[%clk 0:02:02]} 48. Qc6 {[%clk 0:00:01]}  Nf6 {[%clk 0:02:02]} 49. Re3 {[%clk 0:00:01]}  Qd5+ {[%clk 0:02:02]} 50. Qxd5 {[%clk 0:00:01]}  Nxd5 {[%clk 0:02:02]} 51. Rd3 {[%clk 0:00:01]}  Nb3 {[%clk 0:02:02]} 52. Bxh6 {[%clk 0:00:01]}  Kxh6 {[%clk 0:02:02]} 0-1


[Site "http://www.Chess.com"]

[Event "FIDE World Rapid Chess Championship 2021"]
[White "Saric, Ivan"]
[Black "Ghaem Maghami, Ehsan"]
[WhiteFideId "14508150"]
[BlackFideId "12500739"]
[WhiteElo "2684"]
[BlackElo "2553"]
[Result "1/2-1/2"]
[Round "13"]
[TimeControl "900+10"]
[Date "2021.12.28"]
[WhiteClock "0:00:33"]
[BlackClock "0:00:42"]

1. e4 {[%clk 0:15:00]}  c6 {[%clk 0:15:00]} 2. d4 {[%clk 0:15:00]}  d5 {[%clk 0:15:00]} 3. e5 {[%clk 0:15:00]}  Bf5 {[%clk 0:15:00]} 4. Nf3 {[%clk 0:15:00]}  e6 {[%clk 0:15:00]} 5. Be2 {[%clk 0:15:00]}  Nd7 {[%clk 0:15:43]} 6. O-O {[%clk 0:15:57]}  Rc8 {[%clk 0:15:43]} 7. Nbd2 {[%clk 0:15:57]}  h6 {[%clk 0:15:43]} 8. Nb3 {[%clk 0:15:57]}  Ne7 {[%clk 0:15:43]} 9. a4 {[%clk 0:15:58]}  Bh7 {[%clk 0:15:43]} 10. a5 {[%clk 0:15:58]}  a6 {[%clk 0:15:43]} 11. Re1 {[%clk 0:15:58]}  Nf5 {[%clk 0:14:29]} 12. Bd3 {[%clk 0:15:40]}  c5 {[%clk 0:14:29]} 13. dxc5 {[%clk 0:15:40]}  Nxc5 {[%clk 0:14:29]} 14. Nxc5 {[%clk 0:15:40]}  Bxc5 {[%clk 0:14:29]} 15. c3 {[%clk 0:15:40]}  O-O {[%clk 0:14:29]} 16. Ra4 {[%clk 0:14:26]}  Bg6 {[%clk 0:14:08]} 17. h4 {[%clk 0:11:58]}  Ne7 {[%clk 0:07:45]} 18. Nh2 {[%clk 0:12:01]}  Bxd3 {[%clk 0:07:45]} 19. Qxd3 {[%clk 0:12:01]}  Nf5 {[%clk 0:07:45]} 20. h5 {[%clk 0:12:01]}  Qe8 {[%clk 0:07:27]} 21. Rf4 {[%clk 0:11:36]}  Qb5 {[%clk 0:07:27]} 22. Qh3 {[%clk 0:10:58]}  d4 {[%clk 0:05:22]} 23. g4 {[%clk 0:10:58]}  Ne7 {[%clk 0:05:22]} 24. g5 {[%clk 0:10:58]}  hxg5 {[%clk 0:05:23]} 25. Rg4 {[%clk 0:07:52]}  dxc3 {[%clk 0:05:23]} 26. bxc3 {[%clk 0:07:52]}  Nf5 {[%clk 0:05:23]} 27. Rxg5 {[%clk 0:07:52]}  Be7 {[%clk 0:05:23]} 28. Rg2 {[%clk 0:08:05]}  Qxa5 {[%clk 0:04:14]} 29. Bd2 {[%clk 0:08:05]}  Rfd8 {[%clk 0:04:23]} 30. Nf3 {[%clk 0:04:41]}  Rd3 {[%clk 0:04:23]} 31. Qg4 {[%clk 0:04:41]}  Qd5 {[%clk 0:04:23]} 32. Nd4 {[%clk 0:02:29]}  Bf8 {[%clk 0:04:19]} 33. Nxf5 {[%clk 0:02:29]}  exf5 {[%clk 0:04:19]} 34. Qxf5 {[%clk 0:02:29]}  Qd7 {[%clk 0:04:19]} 35. Qxd7 {[%clk 0:02:35]}  Rxd7 {[%clk 0:02:10]} 36. f4 {[%clk 0:02:35]}  Bc5+ {[%clk 0:02:10]} 37. Kf1 {[%clk 0:01:35]}  Rcd8 {[%clk 0:00:59]} 38. Ree2 {[%clk 0:01:35]}  Rd3 {[%clk 0:00:59]} 39. Ke1 {[%clk 0:01:35]}  Rh3 {[%clk 0:00:59]} 40. Rh2 {[%clk 0:01:35]}  Rf3 {[%clk 0:00:59]} 41. h6 {[%clk 0:01:35]}  g6 {[%clk 0:00:59]} 42. e6 {[%clk 0:00:46]}  Kh7 {[%clk 0:00:19]} 43. exf7 {[%clk 0:00:46]}  Rf8 {[%clk 0:00:19]} 44. Re6 {[%clk 0:00:46]}  Rg3 {[%clk 0:00:19]} 45. Rf6 {[%clk 0:00:46]}  a5 {[%clk 0:00:19]} 46. Kd1 {[%clk 0:00:46]}  a4 {[%clk 0:00:19]} 47. Re2 {[%clk 0:00:46]}  a3 {[%clk 0:00:19]} 48. Kc2 {[%clk 0:00:46]}  Rg1 {[%clk 0:00:19]} 49. Be1 {[%clk 0:00:46]}  Kxh6 {[%clk 0:00:42]} 50. f5 {[%clk 0:00:33]}  Kg7 {[%clk 0:00:42]} 51. Rxg6+ {[%clk 0:00:33]}  Rxg6 {[%clk 0:00:42]} 52. fxg6 {[%clk 0:00:33]}  Kxg6 {[%clk 0:00:42]} 53. Bf2 {[%clk 0:00:33]}  Bxf2 {[%clk 0:00:42]} 54. Rxf2 {[%clk 0:00:33]}  Rxf7 {[%clk 0:00:42]} 55. Rxf7 {[%clk 0:00:33]} 1/2-1/2


[Site "http://www.Chess.com"]